[Event "WYCC 2018 O18"]
[Site "Halkidiki"]
[Date "2018.10.21"]
[Round "3"]
[White "Veleshnja, Zino"]
[Black "Varacalli, Francisco"]
[Result "1/2-1/2"]
[ECO "A45"]
[WhiteElo "2155"]
[BlackElo "2334"]
[Annotator "NA"]
[PlyCount "84"]
[EventDate "2018.10.20"]
[EventType "swiss"]
[EventCountry "GRE"]
[SourceTitle "playchess.com"]
[Source "ChessBase"]
[SourceQuality "1"]
[TimeControl "40/5400+30:1800+30"]

1. d4 {[%emt 0:00:00]} Nf6 {[%emt 0:00:00]} 2. Bf4 {[%emt 0:00:00]} d5 {[%emt 0:03:53]} 3. e3 {[%emt 0:00:00]} e6 {[%emt 0:00:16]} 4. c3 {[%emt 0:00:00]} Bd6 {[%emt 0:02:10]} 5. Bg3 {[%emt 0:00:02]} O-O {[%emt 0:03:39]} 6. Bd3 {[%emt 0:00:12]} c5 {[%emt 0:00:34]} 7. Nd2 {[%emt 0:00:14]} Nc6 {[%emt 0:00:50]} 8. Ngf3 {[%emt 0:00:08]} b6 {[%emt 0:01:21]} 9. O-O {[%emt 0:00:15]} Bb7 {[%emt 0:01:04]} 10. e4 {[%emt 0:02:23]} Be7 $11 {[%emt 0:08:03]} (10... Bxg3 $17 11. hxg3 {[#]} Nxd4 $1 {[%mdl 512]} 12. cxd4 dxe4 13. Nxe4 Bxe4 14. Bxe4 Nxe4) 11. dxc5 {[%emt 0:03:35]} bxc5 {[%emt 0:04:58]} 12. Re1 {[%emt 0:01:36]} c4 {[%emt 0:06:48]} 13. Bc2 {[%emt 0:02:00]} Nh5 {[%emt 0:02:38]} 14. exd5 {[%emt 0:03:25]} exd5 {[%emt 0:01:12]} 15. Nf1 {[%emt 0:06:17]} Nxg3 {[%emt 0:10:58]} 16. Nxg3 {[%emt 0:00:52]} Bc8 {[%emt 0:01:02]} 17. Ba4 {[%emt 0:02:16]} Bb7 {[%emt 0:05:16]} 18. Nf5 {[%emt 0:04:41]} Bf6 {[%emt 0:02:13]} 19. N5d4 {[%emt 0:03:55]} Nb8 {[%emt 0:09:09]} 20. Qd2 {[%emt 0:06:15]} Na6 {[%emt 0:01:10]} 21. Rad1 {[%emt 0:08:27]} Nc5 {[%emt 0:00:58]} 22. Bc2 {[%emt 0:05:45]} Qb6 {[%emt 0:01:39]} 23. Re2 {[%emt 0:04:04]} Rad8 {[%emt 0:05:38]} 24. Qf4 {[%emt 0:04:18]} Ne4 {[%emt 0:01:21]} 25. h4 {[%emt 0:04:10]} Qd6 {[%emt 0:03:31]} 26. Qxd6 {[%emt 0:02:06]} Rxd6 {[%emt 0:00:23]} 27. Nd2 {[%emt 0:05:56]} Bxd4 {[%emt 0:03:46]} 28. cxd4 {[%emt 0:00:33]} Nf6 {[%emt 0:08:20]} 29. Nb1 {[%emt 0:01:48]} Re8 {[%emt 0:00:56]} 30. Rxe8+ {[%emt 0:03:56]} Nxe8 {[%emt 0:00:03]} 31. Re1 {[%emt 0:01:27]} Kf8 {[%emt 0:00:18]} 32. Nc3 {[%emt 0:00:46]} Nc7 {[%emt 0:00:49]} 33. b4 {[%emt 0:05:31]} cxb3 {[%emt 0:00:48]} 34. Bxb3 {[%emt 0:00:07]} Ba6 {[%emt 0:00:47]} 35. Re5 Bc4 {[%emt 0:01:04]} 36. Bxc4 {[%emt 0:07:00]} dxc4 {[%emt 0:00:03]} 37. d5 {[%emt 0:03:47]} f6 {[%emt 0:00:50]} 38. Re4 {[%emt 0:00:28]} Rd7 {[%emt 0:01:13]} 39. Rxc4 {[%emt 0:05:37]} Nxd5 {[%emt 0:00:14]} 40. Rd4 {[%emt 0:00:00]} Nb6 {[%emt 0:00:00]} 41. Rxd7 {[%emt 0:02:14]} Nxd7 {[%emt 0:00:22]} 42. f3 {[%emt 0:01:43]} Ke7 {[%emt 0:03:04]} 1/2-1/2

[Event "WYCC 2018 O18"]
[Site "Halkidiki"]
[Date "2018.10.21"]
[Round "3"]
[White "Asllani, Muhamet"]
[Black "Roshka, Yevgeniy"]
[Result "1-0"]
[ECO "B06"]
[WhiteElo "2148"]
[BlackElo "2328"]
[Annotator "NA"]
[PlyCount "147"]
[EventDate "2018.10.20"]
[EventType "swiss"]
[EventCountry "GRE"]
[SourceTitle "playchess.com"]
[Source "ChessBase"]
[SourceQuality "1"]
[TimeControl "40/5400+30:1800+30"]

1. e4 {[%emt 0:00:00]} g6 {[%emt 0:00:05]} 2. Nf3 {[%emt 0:00:00]} Bg7 {[%emt 0:00:06]} 3. d4 {[%emt 0:00:08]} d6 {[%emt 0:00:05]} 4. Bc4 {[%emt 0:00:14]} e6 {[%emt 0:00:36]} 5. O-O {[%emt 0:00:22]} a6 {[%emt 0:00:05]} 6. Re1 {[%emt 0:01:06]} Nd7 {[%emt 0:00:16]} 7. a4 {[%emt 0:01:03]} b6 {[%emt 0:00:05]} 8. Bg5 {[%emt 0:03:27]} Ne7 {[%emt 0:00:03]} 9. c3 {[%emt 0:00:58]} h6 {[%emt 0:00:08]} 10. Be3 {[%emt 0:02:17]} Bb7 {[%emt 0:00:51]} 11. Nbd2 {[%emt 0:00:24]} d5 {[%emt 0:03:43]} 12. exd5 {[%emt 0:01:53]} Nxd5 {[%emt 0:00:22]} 13. Nf1 {[%emt 0:02:22]} Nxe3 {[%emt 0:00:17]} 14. fxe3 {[%emt 0:00:21]} Nf6 {[%emt 0:03:51]} 15. Ng3 {[%emt 0:00:39]} h5 {[%emt 0:02:43]} 16. Nh1 {[%emt 0:03:39]} Ne4 {[%emt 0:24:01]} 17. Qc2 {[%emt 0:06:41]} g5 {[%emt 0:05:59]} 18. Nd2 {[%emt 0:02:17]} Nxd2 $11 {[%emt 0:01:50]} 19. Qxd2 {[%emt 0:00:13]} g4 {[%emt 0:01:12]} 20. Qd3 {[%emt 0:00:36]} Qg5 {[%emt 0:04:01]} 21. e4 {[%emt 0:02:57]} h4 {[%emt 0:02:16]} 22. Rad1 {[%emt 0:06:08]} g3 {[%emt 0:04:18]} 23. hxg3 {[%emt 0:00:38]} hxg3 {[%emt 0:00:09]} 24. Nxg3 {[%emt 0:00:32]} O-O-O {[%emt 0:12:34]} 25. Bxa6 {[%emt 0:01:01]} Be5 {[%emt 0:01:33]} 26. Bxb7+ {[%emt 0:00:53]} Kxb7 {[%emt 0:02:21]} 27. Nf1 {[%emt 0:02:10]} Rdg8 {[%emt 0:11:09]} 28. Qf3 {[%emt 0:03:47]} Bf4 {[%emt 0:01:34]} 29. e5+ {[%emt 0:00:38]} c6 {[%emt 0:02:28]} 30. b4 {[%emt 0:00:34]} Qg4 {[%emt 0:04:43]} 31. Rd3 {[%emt 0:01:31]} Qh4 {[%emt 0:01:49]} 32. g3 {[%emt 0:01:44]} Rxg3+ {[%emt 0:04:26]} 33. Nxg3 {[%emt 0:00:24]} Rg8 {[%emt 0:01:40]} 34. Re4 {[%emt 0:00:26]} Rg4 {[%emt 0:00:11]} 35. b5 {[%emt 0:00:54]} Kb8 {[%emt 0:01:11]} 36. Rxf4 {[%emt 0:01:08]} Rxf4 {[%emt 0:00:01]} 37. Qxc6 {[%emt 0:00:38]} Qh7 {[%emt 0:00:55]} 38. Qxb6+ {[%emt 0:00:11]} Kc8 {[%emt 0:00:04]} 39. Qc6+ {[%emt 0:00:49]} Kd8 {[%emt 0:00:09]} 40. Rf3 {[%emt 0:00:00]} Qb1+ {[%emt 0:00:00]} 41. Kg2 {[%emt 0:03:36]} Qc2+ {[%emt 0:01:41]} 42. Kh3 {[%emt 0:00:12]} Qh7+ {[%emt 0:00:18]} 43. Kg2 {[%emt 0:00:17]} Qc2+ {[%emt 0:00:06]} 44. Kg1 {[%emt 0:00:18]} Qd1+ {[%emt 0:05:03]} 45. Rf1 {[%emt 0:00:43]} Qd3 {[%emt 0:00:48]} 46. Qg2 {[%emt 0:01:46]} Qe3+ {[%emt 0:00:47]} 47. Rf2 {[%emt 0:00:20]} Rg4 {[%emt 0:00:30]} 48. Qa8+ {[%emt 0:01:24]} Kc7 {[%emt 0:01:27]} 49. Kf1 {[%emt 0:01:25]} Qd3+ {[%emt 0:00:15]} 50. Ke1 {[%emt 0:01:50]} Qxg3 {[%emt 0:02:34]} 51. Qf3 {[%emt 0:00:54]} Qh4 {[%emt 0:01:24]} 52. Qxf7+ {[%emt 0:00:02]} Kb8 {[%emt 0:00:07]} 53. Qe8+ {[%emt 0:01:00]} Kb7 {[%emt 0:00:19]} 54. Qc6+ {[%emt 0:00:28]} Kb8 {[%emt 0:00:10]} 55. Qf3 {[%emt 0:01:45]} Rg8 {[%emt 0:03:45]} 56. Kd2 {[%emt 0:00:24]} Qg5+ {[%emt 0:01:14]} 57. Kc2 {[%emt 0:00:04]} Qg6+ {[%emt 0:00:41]} 58. Kb2 {[%emt 0:00:04]} Rc8 {[%emt 0:00:44]} 59. Rc2 {[%emt 0:00:34]} Qe8 {[%emt 0:00:24]} 60. c4 {[%emt 0:00:14]} Qd8 {[%emt 0:00:39]} 61. d5 {[%emt 0:00:24]} Qa5 {[%emt 0:00:54]} 62. Kb3 {[%emt 0:00:16]} exd5 {[%emt 0:00:36]} 63. Qxd5 {[%emt 0:00:21]} Rd8 {[%emt 0:00:12]} 64. Qe4 {[%emt 0:00:50]} Rd1 {[%emt 0:00:14]} 65. Rh2 {[%emt 0:00:36]} Qd8 {[%emt 0:01:02]} 66. Rh7 {[%emt 0:01:27]} Rd3+ {[%emt 0:00:36]} 67. Kb4 {[%emt 0:00:12]} Rd7 {[%emt 0:01:41]} 68. Rxd7 {[%emt 0:00:28]} Qxd7 {[%emt 0:00:01]} 69. Qd5 {[%emt 0:00:15]} Qg7 {[%emt 0:00:18]} 70. b6 {[%emt 0:00:28]} Qf8+ {[%emt 0:06:34]} 71. Qd6+ {[%emt 0:00:13]} Kb7 {[%emt 0:00:03]} 72. a5 {[%emt 0:00:36]} Qf7 {[%emt 0:01:18]} 73. Qd5+ {[%emt 0:00:10]} Ka6 {[%emt 0:00:05]} 74. Qa8+ {[%emt 0:00:10]} 1-0

[Event "WYCC 2018 O18"]
[Site "Halkidiki"]
[Date "2018.10.21"]
[Round "3"]
[White "Giesinger, Elias"]
[Black "Szustakowski, Antoni"]
[Result "1-0"]
[ECO "E06"]
[WhiteElo "2131"]
[BlackElo "2319"]
[Annotator "NA"]
[PlyCount "103"]
[EventDate "2018.10.20"]
[EventType "swiss"]
[EventCountry "GRE"]
[SourceTitle "playchess.com"]
[Source "ChessBase"]
[SourceQuality "1"]
[TimeControl "40/5400+30:1800+30"]

1. d4 {[%emt 0:00:00]} Nf6 {[%emt 0:00:00]} 2. Nf3 {[%emt 0:00:00]} e6 {[%emt 0:00:00]} 3. c4 {[%emt 0:00:05]} d5 {[%emt 0:00:00]} 4. g3 {[%emt 0:00:25]} Be7 {[%emt 0:00:00]} 5. Bg2 {[%emt 0:00:20]} O-O {[%emt 0:00:06]} 6. O-O {[%emt 0:00:05]} c6 {[%emt 0:00:08]} 7. Qc2 {[%emt 0:01:16]} b6 {[%emt 0:00:07]} 8. Nbd2 {[%emt 0:00:57]} Nbd7 {[%emt 0:00:08]} 9. e4 {[%emt 0:01:41]} dxc4 {[%emt 0:00:07]} 10. Nxc4 {[%emt 0:00:39]} Bb7 {[%emt 0:00:06]} 11. Rd1 {[%emt 0:01:04]} c5 {[%emt 0:00:07]} 12. e5 {[%emt 0:00:38] E09: Closed Catalan: Main Line: 7 Qc2 c6 8 Nbd2} (12. Ng5 h6 13. e5 Bxg2 14. exf6 Nxf6 15. Kxg2 hxg5 16. dxc5 Qc7 17. cxb6 axb6 18. Qe2 Rfc8 19. b3 b5 {1-0 (94) Howell,D (2698)-Lopez Martinez,J (2607) Heraklio 2017}) 12... Nd5 {[%emt 0:00:05]} 13. Nd6 {[%emt 0:00:13]} Bxd6 {[%emt 0:03:57]} 14. Ng5 {[%emt 0:02:36]} g6 {[%emt 0:00:31]} 15. exd6 {[%emt 0:00:09]} Nb4 $146 {[%emt 0:27:07]} ({Predecessor:} 15... c4 16. Qe4 N7f6 17. Qe5 h6 18. Nh3 Kh7 19. Re1 Ne8 {1-0 (29) Baenziger,F (2373)-Chukavin,K (2291) Riga 2018}) 16. Qd2 {[%emt 0:14:43]} Bxg2 {[%emt 0:00:09]} 17. Kxg2 {[%emt 0:00:07]} Nd5 {[%emt 0:03:53]} 18. b3 {[%emt 0:04:16]} N7f6 {[%emt 0:02:38]} 19. dxc5 {[%emt 0:03:48]} bxc5 $14 {[%emt 0:01:12]} 20. Bb2 {[%emt 0:01:27]} Qxd6 {[%emt 0:00:36]} 21. Rac1 {[%emt 0:08:11]} e5 {[%emt 0:22:39]} 22. Rc4 {[%emt 0:19:56]} Rad8 {[%emt 0:06:24]} 23. Kg1 {[%emt 0:00:50]} Qe7 {[%emt 0:00:58]} 24. Qe2 {[%emt 0:03:38]} Nb6 {[%emt 0:08:31]} 25. Rcc1 {[%emt 0:01:08]} Rxd1+ {[%emt 0:02:36]} 26. Rxd1 {[%emt 0:00:25]} Nfd5 {[%emt 0:02:01]} 27. Ne4 {[%emt 0:03:35]} f6 {[%emt 0:07:58]} 28. a4 {[%emt 0:01:28]} Nc7 {[%emt 0:07:22]} 29. a5 {[%emt 0:01:30]} Nc8 {[%emt 0:00:50]} 30. Ba3 {[%emt 0:09:42]} Ne6 {[%emt 0:02:52]} 31. Nxc5 {[%emt 0:02:29]} Nxc5 {[%emt 0:01:04]} 32. Qc4+ {[%emt 0:00:07]} Qf7 {[%emt 0:00:54]} 33. Bxc5 {[%emt 0:04:07]} Qxc4 {[%emt 0:00:43]} 34. bxc4 {[%emt 0:00:06]} Re8 {[%emt 0:00:04]} 35. Rd7 {[%emt 0:00:13]} a6 {[%emt 0:00:41]} 36. h4 {[%emt 0:01:38]} h5 {[%emt 0:00:28]} 37. Kf1 {[%emt 0:00:28]} f5 {[%emt 0:00:28]} 38. Ke2 {[%emt 0:01:53]} Kh8 {[%emt 0:00:35]} 39. Kd2 {[%emt 0:02:56]} Kg8 {[%emt 0:00:06]} 40. Kc3 {[%emt 0:00:00]} f4 {[%emt 0:00:00]} 41. gxf4 {[%emt 0:06:14]} exf4 {[%emt 0:01:43]} 42. f3 {[%emt 0:06:39]} g5 {[%emt 0:01:05]} 43. hxg5 {[%emt 0:03:20]} h4 {[%emt 0:00:06]} 44. g6 {[%emt 0:01:53]} h3 {[%emt 0:00:06]} 45. Rh7 {[%emt 0:01:00]} Re6 {[%emt 0:00:05]} 46. Rxh3 {[%emt 0:04:19]} Rxg6 {[%emt 0:00:12]} 47. Rh4 {[%emt 0:00:57]} Rg5 {[%emt 0:00:44]} 48. Rg4 {[%emt 0:03:00]} Rxg4 {[%emt 0:00:28]} 49. fxg4 {[%emt 0:00:03]} Kf7 {[%emt 0:00:06]} 50. Kd4 {[%emt 0:00:11]} Kg6 {[%emt 0:00:05]} 51. Ke4 {[%emt 0:00:07]} Kg5 {[%emt 0:00:03]} 52. Kf3 {[%emt 0:00:07]} 1-0

[Event "WYCC 2018 O18"]
[Site "Halkidiki"]
[Date "2018.10.21"]
[Round "3"]
[White "Dallemagne, Maximilien"]
[Black "Dobrovoljc, Vid"]
[Result "1/2-1/2"]
[ECO "A45"]
[WhiteElo "2094"]
[BlackElo "2309"]
[Annotator "NA"]
[PlyCount "93"]
[EventDate "2018.10.20"]
[EventType "swiss"]
[EventCountry "GRE"]
[SourceTitle "playchess.com"]
[Source "ChessBase"]
[SourceQuality "1"]
[TimeControl "40/5400+30:1800+30"]

1. d4 {[%emt 0:00:00]} Nf6 {[%emt 0:00:00]} 2. g3 {[%emt 0:00:03]} c5 {[%emt 0:05:41]} 3. e3 {[%emt 0:01:39] A45: Damenbauernspiele (Trompowski-Angriff)} (3. c3 e6 4. Bg2 d5 5. Nf3 Be7 6. O-O O-O 7. b3 b6 8. Bb2 Bb7 9. Nbd2 Nc6 10. c4 cxd4 11. Nxd4 Nxd4 12. Bxd4 Rc8 13. Rc1 {1-0 (78) Stupak,K (2578)-Jones,G (2662) Heraklio 2017}) 3... d5 {[%emt 0:01:23]} 4. Bg2 {[%emt 0:01:51]} Nc6 {[%emt 0:03:14]} 5. Nf3 {[%emt 0:01:21]} Bg4 {[%emt 0:01:31]} 6. h3 {[%emt 0:03:24]} Bh5 {[%emt 0:04:50]} 7. O-O {[%emt 0:03:27]} e6 {[%emt 0:00:13]} 8. b3 {[%emt 0:07:41]} cxd4 {[%emt 0:10:47]} 9. exd4 {[%emt 0:06:34]} Bd6 {[%emt 0:00:11]} 10. Bb2 {[%emt 0:11:14]} O-O {[%emt 0:03:29]} 11. Nbd2 $146 {[%emt 0:02:34]} ({Vorgänger:} 11. Nc3 Rc8 12. Ne2 Qb6 13. c3 Bg6 14. Nh4 {0-1 (28) Popova,A-Lazhevskaya,Z St Petersburg 1998}) 11... Rc8 {[%emt 0:01:29]} 12. c4 {[%emt 0:02:56]} b6 {[%emt 0:06:09]} 13. a3 {[%emt 0:02:51]} Qe7 {[%emt 0:01:08]} 14. Re1 {[%emt 0:01:36]} Rfd8 {[%emt 0:03:38]} 15. g4 {[%emt 0:13:42]} Bg6 {[%emt 0:00:14]} 16. g5 {[%emt 0:00:01]} Ne4 {[%emt 0:01:33]} 17. cxd5 {[%emt 0:00:02]} exd5 {[%emt 0:00:12]} 18. Nxe4 {[%emt 0:08:21]} dxe4 {[%emt 0:10:25]} 19. Nd2 {[%emt 0:05:19]} Qxg5 {[%emt 0:03:10]} 20. Nxe4 {[%emt 0:00:28]} Bxe4 {[%emt 0:00:33]} 21. Rxe4 {[%emt 0:00:05]} Ne7 {[%emt 0:00:19]} 22. d5 {[%emt 0:09:34]} Ng6 {[%emt 0:03:36]} 23. Qg4 {[%emt 0:03:42]} Qxg4 {[%emt 0:12:50]} 24. hxg4 {[%emt 0:00:56]} Nf4 {[%emt 0:02:28]} 25. Rc4 {[%emt 0:04:16]} Rxc4 {[%emt 0:04:25]} 26. bxc4 {[%emt 0:00:07]} Nd3 {[%emt 0:00:04]} 27. Ra2 {[%emt 0:03:14]} Be5 {[%emt 0:06:54]} 28. Bxe5 {[%emt 0:02:21]} Nxe5 {[%emt 0:00:04]} 29. Rc2 {[%emt 0:01:26]} Nxg4 {[%emt 0:03:12]} 30. c5 {[%emt 0:00:26]} bxc5 {[%emt 0:00:04]} 31. Rxc5 {[%emt 0:00:01]} Nf6 {[%emt 0:00:23]} 32. Rc7 {[%emt 0:00:52]} h5 {[%emt 0:00:21]} 33. Rxa7 {[%emt 0:01:05]} Nxd5 {[%emt 0:00:04]} 34. a4 {[%emt 0:02:26]} Nf4 {[%emt 0:00:17]} 35. Ra8 {[%emt 0:00:47]} Rxa8 {[%emt 0:03:26]} 36. Bxa8 {[%emt 0:00:01]} Ne2+ {[%emt 0:00:11]} 37. Kg2 {[%emt 0:00:34]} Nd4 {[%emt 0:00:06]} 38. a5 {[%emt 0:00:42]} Kf8 {[%emt 0:01:23]} 39. a6 {[%emt 0:00:30]} Nb5 {[%emt 0:00:18]} 40. Bc6 {[%emt 0:00:00]} Na7 {[%emt 0:00:00]} 41. Bf3 {[%emt 0:01:10]} g6 {[%emt 0:06:20]} 42. Kg3 {[%emt 0:03:04]} Ke7 {[%emt 0:14:18]} 43. Bd5 {[%emt 0:02:18]} f6 {[%emt 0:05:22]} 44. f4 {[%emt 0:02:11]} g5 {[%emt 0:03:39]} 45. fxg5 {[%emt 0:02:17]} fxg5 {[%emt 0:00:11]} 46. Bf3 {[%emt 0:00:37]} g4 {[%emt 0:01:42]} 47. Bxg4 $11 {[%emt 0:00:15]} 1/2-1/2

[Event "WYCC 2018 O18"]
[Site "Halkidiki"]
[Date "2018.10.21"]
[Round "3"]
[White "Torres Cueto, Jesus Marcial"]
[Black "Carnicelli, Valerio"]
[Result "1-0"]
[ECO "E71"]
[WhiteElo "2078"]
[BlackElo "2299"]
[Annotator "NA"]
[PlyCount "101"]
[EventDate "2018.10.20"]
[EventType "swiss"]
[EventCountry "GRE"]
[SourceTitle "playchess.com"]
[Source "ChessBase"]
[SourceQuality "1"]
[TimeControl "40/5400+30:1800+30"]

1. d4 {[%emt 0:00:00]} Nf6 {[%emt 0:00:00]} 2. c4 {[%emt 0:00:00]} g6 {[%emt 0:00:00]} 3. Nc3 {[%emt 0:00:00]} Bg7 {[%emt 0:00:00]} 4. e4 {[%emt 0:00:09]} d6 {[%emt 0:00:00] LiveBook: 52251 Games} 5. h3 {[%emt 0:00:05]} O-O {[%emt 0:00:00]} 6. Be3 {[%emt 0:00:03]} Na6 {[%emt 0:00:13]} 7. g4 {[%emt 0:01:06] E71: Königsindisch (5.h3)} e5 {[%emt 0:01:15]} (7... c5 8. Nge2 b6 9. e5 Ne8 10. Bg2 Rb8 11. O-O Bb7 12. Bxb7 Rxb7 13. Qa4 Nec7 14. exd6 exd6 {½-½ (60) Caruana,F (2811)-Adhiban,B (2655) Wijk aan Zee 2018}) 8. d5 {[%emt 0:00:07]} Nc5 {[%emt 0:00:23]} 9. f3 {[%emt 0:00:37]} a5 {[%emt 0:01:25]} 10. Nge2 {[%emt 0:01:52]} Nfd7 $146 {[%emt 0:05:02]} ({Vorgänger:} 10... c6 11. Ng3 cxd5 12. exd5 h5 13. Qd2 h4 14. Nge4 Ncxe4 15. fxe4 Nh7 {1-0 (42) Lajthajm,B (2477)-Jovanovic,S (2278) Belgrade 2011}) 11. Ng3 {[%emt 0:04:18]} Bf6 {[%emt 0:09:34]} 12. Qd2 {[%emt 0:07:22]} Bh4 {[%emt 0:00:59]} 13. Bf2 {[%emt 0:00:39]} Bg5 {[%emt 0:00:43]} 14. Be3 {[%emt 0:00:35]} Bxe3 {[%emt 0:00:45]} 15. Qxe3 {[%emt 0:00:09]} Qh4 {[%emt 0:00:28]} 16. Qf2 {[%emt 0:01:34]} a4 {[%emt 0:04:35]} 17. Nd1 {[%emt 0:03:58]} Na6 {[%emt 0:03:37]} 18. Ne3 {[%emt 0:01:40]} Ndc5 {[%emt 0:01:33]} 19. O-O-O {[%emt 0:10:15]} Bd7 {[%emt 0:09:04]} 20. Kb1 {[%emt 0:01:47]} Rfb8 {[%emt 0:02:17]} 21. Ng2 {[%emt 0:00:10]} Qe7 {[%emt 0:01:40]} 22. h4 {[%emt 0:00:19]} b5 {[%emt 0:00:31]} 23. Ne3 {[%emt 0:10:18]} bxc4 {[%emt 0:17:45]} 24. Bxc4 {[%emt 0:01:05]} Bb5 {[%emt 0:09:37]} 25. a3 {[%emt 0:10:04]} Bxc4 {[%emt 0:00:39]} 26. Nxc4 {[%emt 0:00:02]} Rb3 {[%emt 0:00:24]} 27. h5 {[%emt 0:20:46]} Rab8 {[%emt 0:02:59]} 28. hxg6 {[%emt 0:01:31]} fxg6 {[%emt 0:00:20]} 29. Ne2 {[%emt 0:09:45]} Qf7 {[%emt 0:07:32]} 30. Rhf1 {[%emt 0:09:17]} Rf8 {[%emt 0:05:12]} 31. Nc3 {[%emt 0:00:56]} Qe8 {[%emt 0:02:16]} 32. Rh1 {[%emt 0:02:52]} Qd7 {[%emt 0:09:05]} 33. Rh4 {[%emt 0:01:23]} Rf7 {[%emt 0:03:42]} 34. Kc2 {[%emt 0:00:49]} Qd8 {[%emt 0:01:41]} 35. Rdh1 {[%emt 0:00:54]} Qb8 {[%emt 0:00:40]} 36. Qe3 {[%emt 0:00:40]} Qf8 {[%emt 0:01:14]} 37. R1h3 {[%emt 0:00:30]} Rb8 {[%emt 0:00:40]} 38. Na5 {[%emt 0:00:46]} Nb3 {[%emt 0:00:37]} 39. Nc6 {[%emt 0:00:13]} Nd4+ {[%emt 0:00:29]} 40. Nxd4 {[%emt 0:00:00]} exd4 {[%emt 0:00:00]} 41. Qxd4 {[%emt 0:00:41]} Nc5 {[%emt 0:01:27]} 42. Qe3 {[%emt 0:05:45]} Qc8 {[%emt 0:03:03]} 43. Rh2 {[%emt 0:03:39]} Qb7 {[%emt 0:00:42]} 44. Kb1 {[%emt 0:02:44]} Qb3 {[%emt 0:00:46]} 45. e5 {[%emt 0:11:10]} dxe5 {[%emt 0:06:41]} 46. Qxc5 {[%emt 0:01:34]} Rxf3 {[%emt 0:00:05] [#]} 47. Na2 $1 {[%emt 0:02:16]} (47. Ka1 Rf1+ 48. Nb1 Rbf8 $11) 47... Qd3+ {[%emt 0:07:49]} 48. Ka1 {[%emt 0:03:07]} Qd4 {[%emt 0:07:33]} 49. Qxc7 {[%emt 0:01:12]} Qd1+ {[%emt 0:02:51]} 50. Nc1 {[%emt 0:01:24]} Rxa3+ {[%emt 0:00:23]} 51. Kb1 {[%emt 0:00:27]} 1-0

[Event "WYCC 2018 O18"]
[Site "Halkidiki"]
[Date "2018.10.21"]
[Round "3"]
[White "Zhu, Brandon"]
[Black "Kouskoutis, Georgios-Alexandros"]
[Result "1-0"]
[ECO "B35"]
[WhiteElo "1914"]
[BlackElo "2296"]
[Annotator "NA"]
[PlyCount "81"]
[EventDate "2018.10.20"]
[EventType "swiss"]
[EventCountry "GRE"]
[SourceTitle "playchess.com"]
[Source "ChessBase"]
[SourceQuality "1"]
[TimeControl "40/5400+30:1800+30"]

1. e4 {[%emt 0:00:00]} c5 {[%emt 0:00:00]} 2. Nf3 {[%emt 0:00:00]} g6 {[%emt 0:00:00]} 3. d4 {[%emt 0:00:16]} cxd4 {[%emt 0:00:00]} 4. Nxd4 {[%emt 0:00:13]} Bg7 {[%emt 0:00:00]} 5. Nc3 {[%emt 0:00:47]} Nc6 {[%emt 0:00:08]} 6. Be3 {[%emt 0:00:11]} Nf6 {[%emt 0:00:28]} 7. Bc4 {[%emt 0:00:12]} O-O {[%emt 0:00:14]} 8. Bb3 {[%emt 0:00:20]} d6 {[%emt 0:00:13]} 9. f3 {[%emt 0:00:45]} Bd7 {[%emt 0:00:14]} 10. Qd2 {[%emt 0:00:14]} Nxd4 {[%emt 0:00:23]} 11. Bxd4 {[%emt 0:00:10]} b5 {[%emt 0:00:07]} 12. a4 {[%emt 0:04:08]} b4 $11 {[%emt 0:14:15]} 13. Na2 {[%emt 0:02:53]} a5 {[%emt 0:01:28]} 14. c3 {[%emt 0:02:27]} bxc3 {[%emt 0:03:36]} 15. Nxc3 {[%emt 0:00:48]} Rb8 {[%emt 0:02:16]} 16. Qd1 {[%emt 0:20:10]} Rb4 {[%emt 0:17:02]} 17. Bxf6 {[%emt 0:04:30]} Bxf6 {[%emt 0:03:14]} 18. Nd5 {[%emt 0:01:16]} Bxb2 {[%emt 0:00:31]} 19. Ra2 {[%emt 0:04:14]} Bg7 {[%emt 0:03:36]} 20. Nxb4 {[%emt 0:00:18]} Bc3+ {[%emt 0:00:06]} 21. Ke2 {[%emt 0:04:35]} axb4 {[%emt 0:02:08]} 22. g4 {[%emt 0:11:21]} Kg7 {[%emt 0:10:10]} 23. Kf1 {[%emt 0:06:25]} e5 {[%emt 0:09:08]} 24. h4 {[%emt 0:01:42]} f5 {[%emt 0:03:51]} 25. gxf5 {[%emt 0:02:20]} gxf5 {[%emt 0:00:29]} 26. Rg2+ {[%emt 0:01:01]} Kh6 {[%emt 0:05:11]} 27. exf5 Rxf5 {[%emt 0:01:48]} 28. Rg5 {[%emt 0:18:03]} Qf6 {[%emt 0:05:39]} 29. Rxf5 {[%emt 0:01:32]} Bxf5 {[%emt 0:02:08]} 30. Qc1+ {[%emt 0:01:41]} Kg7 {[%emt 0:01:34]} 31. Qg5+ {[%emt 0:00:49]} Qxg5 {[%emt 0:00:49]} 32. hxg5 {[%emt 0:00:02]} e4 {[%emt 0:09:31]} 33. fxe4 {[%emt 0:02:12]} Bxe4 {[%emt 0:00:05]} 34. Rh4 {[%emt 0:02:00]} Bf5 {[%emt 0:04:32]} 35. a5 {[%emt 0:01:36]} d5 {[%emt 0:01:11]} 36. Ke2 {[%emt 0:01:24]} d4 {[%emt 0:00:48]} 37. a6 {[%emt 0:01:33]} d3+ {[%emt 0:00:54]} 38. Ke3 {[%emt 0:00:21]} Bc8 {[%emt 0:00:38]} 39. a7 {[%emt 0:00:07]} Bb7 {[%emt 0:00:03]} 40. Kxd3 {[%emt 0:00:00]} Be1 {[%emt 0:00:00]} 41. Re4 {[%emt 0:01:05]} 1-0

[Event "WYCC 2018 O18"]
[Site "Halkidiki"]
[Date "2018.10.21"]
[Round "3"]
[White "Scallan, Fiachra"]
[Black "Lazov, Toni"]
[Result "0-1"]
[ECO "B51"]
[WhiteElo "1896"]
[BlackElo "2292"]
[Annotator "NA"]
[PlyCount "80"]
[EventDate "2018.10.20"]
[EventType "swiss"]
[EventCountry "GRE"]
[SourceTitle "playchess.com"]
[Source "ChessBase"]
[SourceQuality "1"]
[TimeControl "40/5400+30:1800+30"]

1. e4 {[%emt 0:00:00]} c5 {[%emt 0:00:00]} 2. Nf3 {[%emt 0:00:00]} d6 {[%emt 0:00:00]} 3. Bb5+ {[%emt 0:00:00]} Nd7 {[%emt 0:00:43]} 4. c3 {[%emt 0:00:15]} Ngf6 {[%emt 0:01:10]} 5. Qe2 {[%emt 0:00:22]} a6 {[%emt 0:01:49]} 6. Ba4 {[%emt 0:00:09]} b5 {[%emt 0:02:45]} 7. Bc2 {[%emt 0:00:47]} Bb7 {[%emt 0:03:35]} 8. O-O {[%emt 0:00:14]} e5 {[%emt 0:10:25]} 9. d4 {[%emt 0:01:29]} Be7 {[%emt 0:01:47]} 10. Re1 {[%emt 0:02:15]} O-O {[%emt 0:04:02]} 11. Nbd2 {[%emt 0:01:05]} ({Better is} 11. d5 $14) 11... Re8 {[%emt 0:05:58]} 12. Nf1 {[%emt 0:04:46]} exd4 {[%emt 0:03:35]} 13. cxd4 {[%emt 0:00:17]} Bf8 {[%emt 0:04:25]} 14. Ng3 {[%emt 0:05:08]} cxd4 {[%emt 0:06:18]} 15. Nxd4 $17 {[%emt 0:09:25]} d5 {[%emt 0:01:38]} 16. Bg5 {[%emt 0:18:28]} dxe4 {[%emt 0:09:23]} 17. Rad1 {[%emt 0:14:48]} Qc7 {[%emt 0:06:35]} 18. Qd2 {[%emt 0:06:49]} h6 {[%emt 0:07:29]} 19. Bf4 {[%emt 0:02:17]} Qb6 {[%emt 0:04:04]} 20. Ndf5 {[%emt 0:01:24]} Rad8 {[%emt 0:04:03]} 21. Qc1 {[%emt 0:04:01]} Nc5 {[%emt 0:06:15]} 22. Be3 {[%emt 0:02:39]} Rxd1 {[%emt 0:02:18]} 23. Qxd1 {[%emt 0:00:24]} Qc6 {[%emt 0:05:06]} 24. Qb1 {[%emt 0:01:07]} Nd3 {[%emt 0:01:42]} 25. Rd1 {[%emt 0:01:40]} Ng4 {[%emt 0:01:33]} 26. Nd4 {[%emt 0:03:18]} Qg6 {[%emt 0:03:29]} 27. Bxd3 {[%emt 0:06:03]} Nxe3 {[%emt 0:00:02]} 28. Bxb5 {[%emt 0:01:22]} axb5 {[%emt 0:01:26]} 29. fxe3 {[%emt 0:00:07]} h5 {[%emt 0:01:21]} 30. Nxb5 {[%emt 0:01:37]} Qg5 {[%emt 0:00:06]} 31. Qc1 {[%emt 0:00:38]} Qxb5 {[%emt 0:00:07]} 32. Rf1 {[%emt 0:01:16]} h4 {[%emt 0:00:47]} 33. Nf5 {[%emt 0:00:49]} Ba6 {[%emt 0:00:31]} 34. Rf2 {[%emt 0:00:50]} Rc8 {[%emt 0:00:51]} 35. Qd2 {[%emt 0:00:14]} Bb4 {[%emt 0:00:56]} 36. Qd1 {[%emt 0:00:20]} Qd3 {[%emt 0:00:19]} 37. Nh6+ {[%emt 0:01:39]} gxh6 {[%emt 0:00:48]} 38. Qg4+ {[%emt 0:00:09]} Kf8 {[%emt 0:00:56]} 39. h3 {[%emt 0:00:13]} Rc1+ {[%emt 0:00:07]} 40. Kh2 {[%emt 0:00:00]} Bd6+ {[%emt 0:00:00]} 0-1